[Event "Czech Championship 2022"]
[Site "Usti nad Labem"]
[Date "2022.05.14"]
[Round "1.14"]
[White "Bouska, Jiri"]
[Black "Nemec, Jachym"]
[Result "1-0"]
[ECO "B33"]
[WhiteElo "2117"]
[BlackElo "2367"]
[Annotator "TA"]
[PlyCount "75"]
[EventDate "2022.05.12"]
[EventType "swiss"]
[EventCountry "CZE"]
[SourceTitle "playchess.com"]
[Source "ChessBase"]
[SourceQuality "1"]
[TimeControl "40/5400+30:1800+30"]

{[%evp 16,75,22,0,6,0,0,-8,-4,0,0,0,0,0,0,-2,-7,-17,0,0,3,0,0,-7,11,4,87,97,90,77,110,62,154,36,172,116,166,170,161,171,237,47,48,60,52,64,60,-91,-102,-158,0,0,0,0,0,0,838,804,29994,29995,29995,29996]} 1. e4 {[%emt 0:00:04]} c5 {[%emt 0:00:05]} 2. Nf3 {[%emt 0:00:04]} Nc6 {[%emt 0:00:05]} 3. d4 {[%emt 0:00:21]} cxd4 {[%emt 0:00:04]} 4. Nxd4 {[%emt 0:00:04]} Nf6 {[%emt 0:00:06]} 5. Nc3 {[%emt 0:00:20]} e5 {[%emt 0:00:05]} 6. Ndb5 {[%emt 0:00:13]} d6 {[%emt 0:00:06]} 7. Nd5 {[%emt 0:00:22]} Nxd5 {[%emt 0:00:06]} 8. exd5 {[%emt 0:00:04]} Nb8 {[%emt 0:00:04]} 9. a4 {[%emt 0:00:10]} Be7 {[%emt 0:00:06] B33: Sicilian: Pelikan and Sveshnikov Variations.} 10. Bd3 {[%emt 0:00:30]} O-O {[%emt 0:00:14]} 11. O-O {[%emt 0:00:45]} Nd7 {[%emt 0:00:31] The position is equal.} 12. Be3 {[%emt 0:00:39]} a6 {[%emt 0:00:27]} 13. Na3 {[%emt 0:01:24][%cal Bb5a3,Ba3c4,Bc4b6][%mdl 32] [#]} (13. Qh5 $2 Nf6 14. Qh4 axb5 $19) 13... f5 $146 {[%emt 0:01:28]} ({Predecessor:} 13... Nb6 14. c4 f5 15. f4 Nd7 16. fxe5 Nxe5 17. Bd4 Bd7 18. b4 Rc8 19. Be2 Ng6 {½-½ (38) Ivanovic,Z (2203)-Vidalina,F (2325) ICCF email 2006}) 14. f4 {[%emt 0:00:36]} exf4 {[%emt 0:03:15]} 15. Bxf4 {[%emt 0:02:59]} Ne5 {[%emt 0:14:15]} 16. Kh1 {[%emt 0:06:37]} g5 {[%emt 0:10:44]} 17. Bxe5 {[%emt 0:05:53]} dxe5 {[%emt 0:00:08]} 18. Nc4 {[%emt 0:02:19]} e4 {[%emt 0:00:56]} (18... Qxd5 19. Nb6 Qc5 20. Nxa8 $16) 19. Be2 {[%emt 0:03:04]} Bf6 {[%emt 0:02:55]} 20. a5 {[%emt 0:03:40] With the idea Nb6.} f4 {[%emt 0:09:51]} (20... Rb8 $11 {remains equal.}) 21. Nb6 {[%emt 0:01:56]} Rb8 {[%emt 0:01:01]} 22. d6 {[%emt 0:10:52][%cal Bd5d6,Bd6d7][%mdl 32] Hoping for d7.} Be6 {[%emt 0:03:04]} (22... Bxb2 $2 23. Rb1 $18) 23. Bg4 {[%emt 0:00:47]} (23. Ra4 $1 $16 {[%cal Ra4e4]}) 23... Qe8 {[%emt 0:08:22]} ({Black should try} 23... Bxg4 $14 24. Qxg4 Qxd6) 24. Ra4 {[%emt 0:05:52] White is more active.} ({Only move:} 24. d7 $16 Qf7 25. Ra4) 24... e3 {[%emt 0:14:38]} (24... Bxg4 $14 25. Qxg4 Rd8) 25. d7 $18 {[%emt 0:09:16]} Qf7 {[%emt 0:04:28]} (25... Qe7 $16) 26. Re4 {[%emt 0:00:38]} Bxg4 {[%emt 0:02:46]} 27. Qxg4 {[%emt 0:00:10] aiming for Rexf4.} Kh8 {[%emt 0:01:49] [#]} (27... Rbd8 $142 28. Rexf4 h5) 28. Rd1 $2 {[%emt 0:08:50]} ({Better is} 28. Nc8 $1 $18) 28... Rbd8 $1 $14 {[%emt 0:03:41]} (28... Qg6 29. Re6 Rbd8 30. Nd5 $16) 29. Na4 {[%emt 0:07:01] Nc5 is the strong threat.} Qg6 {[%emt 0:03:53]} 30. Nc5 $36 {[%emt 0:01:05][%mdl 2048] Strongly threatening Rd6. White has some pressure.} Bxb2 {[%emt 0:03:02]} 31. h4 $2 {[%emt 0:17:04]} (31. Rd3 $1 $14 {keeps the upper hand.}) 31... Ba3 $17 {[%emt 0:05:01]} 32. Re6 {[%emt 0:06:20]} (32. Re5 $142 Bxc5 33. Rxc5) 32... Qxc2 $2 {[%emt 0:05:12]} (32... Qg7 $17 33. Ne4 Rxd7 34. Rxd7 Qxd7 35. Nxg5 {[#]} Rf6 $3 {[%mdl 512]}) 33. Nxb7 $11 {[%emt 0:00:21]} f3 $1 {[%emt 0:00:41]} 34. Qd4+ {[%emt 0:00:19]} Kg8 {[%emt 0:00:09][%csl Gf3][%cal Rc2g2]} 35. gxf3 {[%emt 0:00:44] Intending Rg1 and mate. The board is on fire.} Qf5 $2 {[%emt 0:03:35][%mdl 8192]} (35... Bb2 $2 36. Qd3 (36. Qd5 Rxd7 37. Qxd7 Qf2 $11) 36... Qxd3 37. Rxd3 $18) (35... Rxd7 $11 36. Qxd7 Qf2) 36. Qg4 $18 {[%emt 0:01:23]} Qc2 {[%emt 0:00:48]} 37. Qxg5+ {[%emt 0:00:11]} Kh8 {[%emt 0:00:08]} 38. Qe5+ {[%emt 0:00:04] Weighted Error Value: White=0.31/Black=0.44} 1-0

[Event "Czech Championship 2022"]
[Site "Usti nad Labem"]
[Date "2022.05.14"]
[Round "1.15"]
[White "Stalmach, Richard"]
[Black "Pokrupa, Marek"]
[Result "1-0"]
[ECO "A59"]
[WhiteElo "2350"]
[BlackElo "2117"]
[Annotator "TA"]
[PlyCount "71"]
[EventDate "2022.05.12"]
[EventType "swiss"]
[EventCountry "CZE"]
[SourceTitle "playchess.com"]
[Source "ChessBase"]
[SourceQuality "1"]
[TimeControl "40/5400+30:1800+30"]

{[%evp 21,71,69,70,65,74,66,73,60,67,40,91,68,103,110,117,96,154,152,164,168,155,115,118,120,181,168,342,316,299,220,195,206,602,591,599,580,648,677,679,676,1171,653,583,471,1580,1564,2932,2041,29987,29988,29998,29999]} 1. d4 {[%emt 0:00:03]} Nf6 {[%emt 0:00:05]} 2. c4 {[%emt 0:00:08]} c5 {[%emt 0:01:25]} 3. d5 {[%emt 0:00:20]} b5 {[%emt 0:00:08]} 4. cxb5 {[%emt 0:00:27]} a6 {[%emt 0:00:05]} 5. bxa6 {[%emt 0:00:41]} g6 {[%emt 0:00:14]} 6. Nc3 {[%emt 0:00:46]} Bxa6 {[%emt 0:04:06]} 7. e4 {[%emt 0:00:49]} Bxf1 {[%emt 0:02:20]} 8. Kxf1 {[%emt 0:00:07]} d6 {[%emt 0:00:17]} 9. Nf3 {[%emt 0:00:21]} Bg7 {[%emt 0:00:06]} 10. g3 {[%emt 0:00:20]} Nbd7 {[%emt 0:02:27]} 11. Kg2 {[%emt 0:00:19]} O-O {[%emt 0:00:22]} 12. a4 {[%emt 0:01:16] A59: Benko/Volga Gambit: White castles by hand.} Ra6 {[%emt 0:05:27]} 13. Qc2 {[%emt 0:02:30] 13.Qe2 might become the main line.} Qa8 {[%emt 0:00:42]} 14. Re1 {[%emt 0:02:47] White is better.} Rb8 {[%emt 0:01:56]} 15. b3 {[%emt 0:10:16] was the old line (15.Ra3).} Ne8 {[%emt 0:09:04]} (15... c4 $14) 16. Bg5 {[%emt 0:06:09]} Kf8 {[%emt 0:04:54] [#]} 17. h4 $146 {[%emt 0:08:24]} ({Predecessor:} 17. Nd2 Nc7 18. Nc4 Nb6 19. Na3 Ncxd5 20. Nxd5 Nxd5 21. Rac1 Nc7 22. Bd2 Rab6 23. Rb1 {½-½ (23) Horvath,P (2482)-Brustkern,J (2288) Budapest 2002}) 17... Rab6 {[%emt 0:08:34]} 18. Nd2 {[%emt 0:05:19][%cal Bf3d2,Bd2c4,Bc4a3][%mdl 32]} Qa6 {[%emt 0:04:43]} (18... c4 $142) 19. Rab1 $16 {[%emt 0:04:54]} Nc7 {[%emt 0:02:14]} 20. Nc4 {[%emt 0:03:46]} R6b7 {[%emt 0:03:28]} 21. Bf4 {[%emt 0:05:10][%cal Oh4h5]} Nb6 {[%emt 0:08:12]} 22. Na3 {[%emt 0:07:35][%cal Oh4h5] 0x0.001b5a0e3fd8dp-1022s more active pieces.} c4 {[%emt 0:18:19]} (22... h5 $16 23. Rec1 Kg8) 23. b4 {[%emt 0:06:50][%cal Bb3b4,Bb4c5,Bc5c6,Bc6c7][%mdl 32] Threatens to win with Be3.} Nxa4 $2 {[%emt 0:01:02] [#]} (23... Kg8 {might work better.} 24. Rec1 Bxc3 25. Qxc3 Qxa4 26. Nxc4 Nxc4) 24. Nxa4 {[%emt 0:00:12]} Ra8 {[%emt 0:02:19]} 25. Nc5 {[%emt 0:02:19]} dxc5 {[%emt 0:00:59]} 26. bxc5 {[%emt 0:00:17]} c3 {[%emt 0:02:34]} (26... Rxb1 27. Nxb1 Qa5) 27. Rxb7 $18 {[%emt 0:03:26]} Qxb7 {[%emt 0:00:12]} 28. Rb1 {[%emt 0:07:51]} Qa6 {[%emt 0:08:50]} 29. Bxc7 {[%emt 0:00:29]} Qxa3 {[%emt 0:00:03]} 30. c6 {[%emt 0:00:18]} Qc5 {[%emt 0:01:07]} 31. Bf4 {[%emt 0:01:40]} Rc8 {[%emt 0:05:24]} 32. Rb7 {[%emt 0:02:57]} f5 {[%emt 0:01:42]} (32... Qd4 $142 33. c7 Be5 34. Bxe5 Qxe5) 33. c7 {[%emt 0:01:37]} Kf7 {[%emt 0:01:36]} 34. Qa4 {[%emt 0:03:31] [#] White threatens Qd7 and mate.} c2 {[%emt 0:01:04]} 35. Qd7 {[%emt 0:00:09][%csl LRc8,LRf5]} Rf8 {[%emt 0:00:49]} 36. Qe6+ {[%emt 0:00:06] Weighted Error Value: White=0.33/Black=0.66} 1-0

[Event "Czech Championship 2022"]
[Site "Usti nad Labem"]
[Date "2022.05.14"]
[Round "1.16"]
[White "Kozak, Milos"]
[Black "Mikes, Jan"]
[Result "1/2-1/2"]
[ECO "E04"]
[WhiteElo "2114"]
[BlackElo "2349"]
[Annotator "TA"]
[PlyCount "61"]
[EventDate "2022.05.12"]
[EventType "swiss"]
[EventCountry "CZE"]
[SourceTitle "playchess.com"]
[Source "ChessBase"]
[SourceQuality "1"]
[TimeControl "40/5400+30:1800+30"]

{[%evp 20,61,14,6,12,6,13,10,10,9,14,9,10,9,3,5,10,7,10,11,11,3,6,0,10,0,15,9,40,40,42,42,36,39,36,35,53,50,46,35,33,29,37,29]} 1. d4 {[%emt 0:00:02]} Nf6 {[%emt 0:00:11]} 2. c4 {[%emt 0:00:09]} e6 {[%emt 0:00:20]} 3. g3 {[%emt 0:00:26]} d5 {[%emt 0:00:21]} 4. Nf3 {[%emt 0:00:07]} dxc4 {[%emt 0:00:05]} 5. Bg2 {[%emt 0:00:06]} c5 {[%emt 0:00:20]} 6. O-O {[%emt 0:00:36]} Nc6 {[%emt 0:00:04]} 7. dxc5 {[%emt 0:00:16]} Qxd1 {[%emt 0:00:08]} 8. Rxd1 {[%emt 0:00:05]} Bxc5 {[%emt 0:00:06]} 9. Nbd2 {[%emt 0:00:13]} c3 {[%emt 0:00:05]} 10. bxc3 {[%emt 0:00:04]} O-O {[%emt 0:00:11]} 11. Nb3 {[%emt 0:00:50]} Be7 {[%emt 0:00:12] E04: Open Catalan: 5 Nf3.} 12. Bb2 {[%emt 0:01:34]} Bd7 {[%emt 0:00:25]} 13. c4 {[%emt 0:00:50]} Rfc8 {[%emt 0:00:28] The position is equal.} 14. Rac1 {[%emt 0:04:21] [#] aiming for Bxf6.} Be8 {[%emt 0:01:15]} 15. Nfd4 {[%emt 0:05:19]} a5 {[%emt 0:06:09]} 16. Nxc6 {[%emt 0:13:06]} Bxc6 {[%emt 0:00:27] [#]} 17. Bxc6 $146 {[%emt 0:00:11]} ({Predecessor:} 17. Nd4 Bxg2 18. Kxg2 Rd8 19. Nb5 Rxd1 20. Rxd1 Rc8 21. Ba3 Bxa3 22. Nxa3 Ne4 23. Rb1 {½-½ (32) Howell,D (2646)-Fridman,D (2626) Warsaw 2021}) 17... Rxc6 {[%emt 0:10:36]} 18. Nd4 {[%emt 0:02:43]} Rb6 {[%emt 0:01:06]} 19. Nb5 {[%emt 0:02:00]} a4 {[%emt 0:00:13]} 20. Bd4 {[%emt 0:09:42]} Rc6 {[%emt 0:01:47]} 21. Na7 {[%emt 0:04:29]} Rd6 {[%emt 0:08:39][%cal Od6d4]} 22. Nb5 {[%emt 0:03:11]} Rdd8 {[%emt 0:02:04]} 23. Rd3 {[%emt 0:06:04]} a3 {[%emt 0:17:25]} 24. Bb6 {[%emt 0:17:12]} Rxd3 {[%emt 0:08:39]} 25. exd3 {[%emt 0:00:05]} Nd7 {[%emt 0:00:11]} 26. Be3 {[%emt 0:01:09]} Ne5 {[%emt 0:20:31]} 27. Rc3 {[%emt 0:04:24]} Rd8 {[%emt 0:08:56]} 28. d4 {[%emt 0:02:28]} Nc6 {[%emt 0:00:22]} 29. c5 {[%emt 0:00:33]} e5 {[%emt 0:01:30]} 30. dxe5 {[%emt 0:02:08]} Nxe5 {[%emt 0:00:04]} 31. Nxa3 {[%emt 0:03:25] Weighted Error Value: White=0.03 (flawless) /Black=0.04 (flawless)} 1/2-1/2

[Event "Czech Championship 2022"]
[Site "Usti nad Labem"]
[Date "2022.05.14"]
[Round "1.17"]
[White "Stinka, Jakub"]
[Black "Paulus, Vaclav"]
[Result "1-0"]
[ECO "A65"]
[WhiteElo "2345"]
[BlackElo "2093"]
[Annotator "TA"]
[PlyCount "73"]
[EventDate "2022.05.12"]
[EventType "swiss"]
[EventCountry "CZE"]
[SourceTitle "playchess.com"]
[Source "ChessBase"]
[SourceQuality "1"]
[TimeControl "40/5400+30:1800+30"]

{[%evp 16,72,31,20,27,0,0,0,22,0,0,0,60,75,100,91,104,85,110,118,165,129,210,177,307,317,295,303,334,320,319,314,303,284,750,740,685,578,595,547,1043,714,1342,3028,2373,1972,3465,2507,29988,29989,5816,17,5314,4042,29997,29998,29998,29999,29999]} 1. d4 {[%emt 0:00:08]} Nf6 {[%emt 0:00:04]} 2. c4 {[%emt 0:00:12]} g6 {[%emt 0:00:04]} 3. Nc3 {[%emt 0:00:08]} Bg7 {[%emt 0:00:03]} 4. e4 {[%emt 0:00:23]} d6 {[%emt 0:00:03]} 5. h3 {[%emt 0:00:11]} O-O {[%emt 0:00:04]} 6. Bg5 {[%emt 0:00:05]} c5 {[%emt 0:00:03]} 7. d5 {[%emt 0:00:30]} e6 {[%emt 0:00:09]} 8. Bd3 {[%emt 0:01:09]} exd5 {[%emt 0:00:04]} 9. cxd5 {[%emt 0:00:32]} Re8 {[%emt 0:00:13][%cal Of6e4] A65: Modern Benoni: 6 e4.} 10. Nge2 {[%emt 0:01:29]} Nbd7 {[%emt 0:01:40]} 11. O-O {[%emt 0:02:04]} h6 {[%emt 0:01:11] The position is equal.} 12. Be3 {[%emt 0:00:51]} (12. Bf4 $5 {[%cal Rf4d6]}) 12... a6 {[%emt 0:01:56]} 13. a4 {[%emt 0:00:55]} c4 {[%emt 0:03:02]} (13... Ne5 $11) 14. Bc2 $14 {[%emt 0:02:15]} (14. Bxc4 Nxe4 15. Re1 Ne5 $11) 14... Qc7 {[%emt 0:02:35] [#]} 15. Qd2 $146 {[%emt 0:02:45]} ({Predecessor:} 15. f4 b6 16. Qd2 Kh7 17. Ng3 Rb8 18. e5 dxe5 19. f5 Nc5 20. d6 Qc6 21. fxg6+ fxg6 22. Rxf6 Bxf6 {1-0 (29) Santiago,Y (2472)-Quishpe Vaca,A (2006) Guayaquil 2019}) 15... Kh7 {[%emt 0:00:47]} 16. Ng3 {[%emt 0:10:16]} Nc5 {[%emt 0:05:36]} 17. f4 {[%emt 0:02:00]} Nfd7 {[%emt 0:07:13]} (17... b6 $16) 18. Rae1 {[%emt 0:05:13][%cal Oe4e5]} b5 {[%emt 0:03:15]} (18... Nd3 $16) 19. axb5 {[%emt 0:02:32][%cal Oe4e5] Strongly threatening e5!} axb5 {[%emt 0:00:06]} (19... Nd3 $142) 20. e5 $18 {[%emt 0:06:20]} (20. Nxb5 Qb6 21. Nd4 Nf6 $16) 20... dxe5 {[%emt 0:05:54]} 21. f5 {[%emt 0:00:41]} (21. Nxb5 Qb8 22. Nh5 Bh8 23. fxe5 Nxe5 24. Bxc5 Qxb5 $14) 21... Nd3 {[%emt 0:13:57]} 22. fxg6+ {[%emt 0:01:58]} (22. Nxb5 Qa5 23. Nd6 (23. Bxd3 cxd3 24. Nd6 Qxd2 $16) 23... Qxd2 24. Bxd2 Nxe1 25. Rxe1 Rf8 $16) 22... fxg6 {[%emt 0:01:10]} 23. Bxd3 {[%emt 0:00:36]} (23. Nxb5 Qa5 24. Bxd3 cxd3 $16) 23... cxd3 {[%emt 0:00:08] [#]} 24. Rf7 {[%emt 0:01:13] Hoping for Bxh6.} ({Less strong is} 24. Nxb5 Qa5 25. Ne4 (25. Qxd3 $2 Ba6 $19) 25... Rf8 26. Rxf8 (26. Qxd3 Ba6 $15) 26... Qxd2 27. Bxd2 Nxf8 $16) (24. Qxd3 Nf6 $14) 24... b4 $2 {[%emt 0:08:39]} (24... Kg8) 25. Bxh6 {[%emt 0:04:29]} bxc3 {[%emt 0:02:36]} 26. Rxg7+ {[%emt 0:01:21]} Kh8 {[%emt 0:00:01]} 27. Qxd3 {[%emt 0:02:00]} cxb2 {[%emt 0:04:49]} 28. Rxg6 {[%emt 0:05:46] [#] Intending Bg7+ and mate.} ({Don't go for} 28. Qxg6 $2 Qb6+ 29. Qxb6 Nxb6 $19) 28... Nc5 {[%emt 0:14:30]} 29. Qf3 {[%emt 0:02:37] Qf6+ would kill now.} Ra6 {[%emt 0:01:34] Prevents Qf6+.} 30. Rxa6 {[%emt 0:08:00]} Bxa6 {[%emt 0:00:38]} 31. Qh5 {[%emt 0:01:15] White wants to mate with Nf5.} Bb5 {[%emt 0:03:07]} 32. Nf5 {[%emt 0:05:50]} Qh7 {[%emt 0:00:53]} 33. Bg7+ {[%emt 0:01:59]} Kg8 {[%emt 0:00:48]} 34. Qg5 {[%emt 0:01:13]} Nd3 {[%emt 0:03:16]} 35. Nh6+ {[%emt 0:00:40] White mates.} Qxh6 {[%emt 0:00:09]} 36. Bxh6+ {[%emt 0:00:07]} Kf7 {[%emt 0:00:01]} 37. Qg7# {[%emt 0:29:17] Black did not feel at home in the position after the opening.  Weighted Error Value: White=0.28 (precise) /Black=0.88} 1-0

[Event "Czech Championship 2022"]
[Site "Usti nad Labem"]
[Date "2022.05.14"]
[Round "1.18"]
[White "Ret, Adam Josef"]
[Black "Horak, Martin"]
[Result "0-1"]
[ECO "A43"]
[WhiteElo "2093"]
[BlackElo "2343"]
[Annotator "TA"]
[PlyCount "86"]
[EventDate "2022.05.12"]
[EventType "swiss"]
[EventCountry "CZE"]
[SourceTitle "playchess.com"]
[Source "ChessBase"]
[SourceQuality "1"]
[TimeControl "40/5400+30:1800+30"]

{[%evp 9,86,0,46,24,24,20,37,41,44,-4,20,2,2,-16,0,-38,-18,-22,-25,-54,-44,-39,-40,-39,-48,-61,-35,-34,-28,-47,-64,-48,-62,-44,-25,-77,-71,-75,-54,-39,-29,-29,-38,-46,0,0,0,0,0,-97,-102,-96,-102,-119,-110,-226,-217,-268,-231,-285,-285,-285,-220,-220,-220,-284,-259,-258,-187,-29980,-29981,-29981,-29982,-29984,-29985,-29985,-29986,-29985,-29986]} 1. d4 {[%emt 0:00:03]} Nf6 {[%emt 0:00:13]} 2. Nf3 {[%emt 0:00:13]} c5 {[%emt 0:01:14]} 3. d5 {[%emt 0:00:43]} b5 {[%emt 0:00:45]} 4. e3 {[%emt 0:08:31]} Qb6 {[%emt 0:12:17] [#]} 5. b3 $146 {[%emt 0:05:19]} ({Predecessor:} 5. c4 bxc4 6. Bxc4 g6 7. Nc3 Bg7 8. O-O d6 9. Qc2 O-O 10. e4 Ba6 11. Nd2 Nbd7 {½-½ (22) Voicu,T (1782)-Bantescu,D (1872) Calimanesti Caciulata 2019}) 5... g6 {[%emt 0:03:02]} (5... Bb7 $11 {might be stronger.}) 6. c4 {[%emt 0:02:20] A43: Schmid Benoni.} Bg7 {[%emt 0:01:18]} 7. Bb2 {[%emt 0:00:46]} bxc4 {[%emt 0:12:17]} 8. Bxc4 {[%emt 0:00:25] White is slightly better.} O-O {[%emt 0:00:22]} 9. Qe2 {[%emt 0:04:56]} (9. O-O $14) 9... d6 {[%emt 0:11:31]} 10. h3 {[%emt 0:04:15]} Ba6 {[%emt 0:02:45]} 11. Nc3 {[%emt 0:04:38]} Bxc4 {[%emt 0:00:56]} (11... Ne4 {is interesting.} 12. Nxe4 Bxb2 13. Rb1 Qa5+) 12. Qxc4 {[%emt 0:00:34]} Nbd7 {[%emt 0:01:47]} 13. O-O {[%emt 0:03:07]} Qb4 {[%emt 0:02:46]} 14. Qe2 {[%emt 0:13:53]} Nb6 {[%emt 0:01:14]} 15. Rfd1 {[%emt 0:01:45]} a5 {[%emt 0:07:29][%cal Ba7a5,Ba5a4][%mdl 32]} 16. Rab1 {[%emt 0:10:41] aiming for a3.} a4 {[%emt 0:02:04]} 17. Ba1 {[%emt 0:02:54]} Qa5 {[%emt 0:01:59]} 18. e4 {[%emt 0:06:36]} Nfd7 {[%emt 0:03:05]} 19. Nxa4 {[%emt 0:03:35]} Nxa4 {[%emt 0:00:31]} 20. Bxg7 {[%emt 0:00:11]} Kxg7 {[%emt 0:00:23]} 21. bxa4 {[%emt 0:00:06]} Qxa4 {[%emt 0:00:59]} 22. Rb7 {[%emt 0:00:55]} (22. e5 $11) 22... Rfb8 $17 {[%emt 0:06:54]} 23. Rdb1 {[%emt 0:00:57]} Rxb7 {[%emt 0:02:25]} 24. Rxb7 {[%emt 0:00:05]} Ra7 {[%emt 0:03:25]} 25. Rxa7 {[%emt 0:00:06]} Qxa7 $11 {[%emt 0:00:05][%mdl 4096] Endgame KQN-KQN} 26. e5 {[%emt 0:01:33]} Nb6 {[%emt 0:02:36]} (26... Qa3 $15 {should be considered.} 27. Kh2 Qa4) 27. exd6 {[%emt 0:02:45]} exd6 {[%emt 0:00:21]} 28. Qb2+ {[%emt 0:00:59]} f6 {[%emt 0:03:32]} 29. Ng5 {[%emt 0:04:28]} (29. Qb5 $11) 29... Nxd5 $17 {[%emt 0:00:57]} 30. Ne4 {[%emt 0:00:58]} Qe7 {[%emt 0:01:52]} 31. f3 {[%emt 0:00:06]} Nb4 {[%emt 0:06:34] White must now prevent ...d5.} 32. a3 {[%emt 0:00:53]} (32. Qc3 $17) 32... d5 $1 $19 {[%emt 0:01:00]} 33. axb4 {[%emt 0:02:24]} dxe4 {[%emt 0:00:05] KQ-KQ} 34. b5 {[%emt 0:01:16]} exf3 {[%emt 0:02:46]} 35. gxf3 {[%emt 0:00:06]} Qe1+ {[%emt 0:01:29]} 36. Kg2 {[%emt 0:00:12] [#]} c4 $1 {[%emt 0:00:11]} 37. b6 {[%emt 0:03:01]} c3 {[%emt 0:00:05]} 38. Qf2 {[%emt 0:05:04]} (38. Qb3 Qd2+ 39. Kg3 c2 40. Qc4 Qe1+ 41. Kg2 c1=Q 42. Qc7+ Qxc7 43. bxc7 Qc3 44. Kf2 Qxc7 45. Ke2 Qc3 46. f4 Kh6 47. Kf2 Qd3 48. f5 gxf5 49. Kg2 f4 50. h4 Qg3+ 51. Kf1 f3 52. h5 Qg2+ 53. Ke1 Qe2#) 38... Qb1 {[%emt 0:02:17] ( -> ...c2)} 39. Qc5 $2 {[%emt 0:01:21] [#]} (39. Qe3 $19) 39... Qb2+ $1 {[%emt 0:00:56] Black mates.} 40. Kg3 {[%emt 0:00:18]} c2 {[%emt 0:00:34]} 41. b7 {[%emt 0:31:08]} c1=Q {[%emt 0:30:47]} 42. Qxc1 {[%emt 0:00:06]} Qxc1 {[%emt 0:00:04]} 43. b8=Q {[%emt 0:00:20]} Qg1+ {[%emt 0:00:06] Weighted Error Value: White=0.40/Black=0.11 (very precise)} 0-1

[Event "Czech Championship 2022"]
[Site "Usti nad Labem"]
[Date "2022.05.14"]
[Round "1.19"]
[White "Mica, Marek"]
[Black "Sykora, Ondrej"]
[Result "1-0"]
[ECO "A04"]
[WhiteElo "2343"]
[BlackElo "2092"]
[Annotator "TA"]
[PlyCount "69"]
[EventDate "2022.05.12"]
[EventType "swiss"]
[EventCountry "CZE"]
[SourceTitle "playchess.com"]
[Source "ChessBase"]
[SourceQuality "1"]
[TimeControl "40/5400+30:1800+30"]

{[%evp 9,69,33,33,30,55,42,97,88,79,95,89,55,78,47,53,57,62,68,112,67,104,106,150,105,102,43,61,45,54,54,51,52,128,111,125,126,168,144,154,117,121,76,75,63,115,115,116,104,151,129,140,114,471,453,510,530,522,524,558,501,800,710]} 1. Nf3 {[%emt 0:00:05]} d6 {[%emt 0:00:10]} 2. g3 {[%emt 0:00:16]} Bg4 {[%emt 0:00:12]} 3. Bg2 {[%emt 0:00:14]} e5 {[%emt 0:00:08]} 4. d4 {[%emt 0:00:47]} Nc6 {[%emt 0:00:30]} 5. c3 {[%emt 0:07:51][%cal Bc2c3,Bc3d4,Bd4d5][%mdl 32]} Be7 {[%emt 0:04:46] [#]} 6. Qb3 $146 {[%emt 0:06:28] A04: Unusual lines after 1 Nf3 and King's Indian Attack.} ({Predecessor:} 6. O-O Nf6 7. b4 e4 8. Ne1 Qd7 9. Bg5 d5 10. Nd2 O-O 11. f3 exf3 12. exf3 {½-½ (21) Spassov,L (2420)-Teichmann,E (2290) Metz 1991}) 6... Bc8 {[%emt 0:01:48]} 7. O-O {[%emt 0:08:14]} exd4 {[%emt 0:01:00]} ({Black should try} 7... e4 $14) 8. Nxd4 $16 {[%emt 0:02:03] White is better.} Nxd4 {[%emt 0:00:18]} 9. cxd4 {[%emt 0:00:07]} c6 {[%emt 0:00:34]} 10. e4 {[%emt 0:00:58] Prevents d5.} Qb6 {[%emt 0:02:03]} 11. Be3 {[%emt 0:09:07]} Qxb3 {[%emt 0:03:02]} 12. axb3 {[%emt 0:00:12]} Nf6 {[%emt 0:03:51]} 13. d5 {[%emt 0:01:25] Prevents Be6.} c5 {[%emt 0:02:49]} 14. h3 {[%emt 0:05:39]} a6 {[%emt 0:03:38]} 15. Na3 {[%emt 0:03:52]} Bd7 {[%emt 0:04:26]} 16. Nc4 {[%emt 0:07:26] aiming for e5.} Bb5 {[%emt 0:00:24]} 17. Rfd1 {[%emt 0:01:52] 0x0.00215a4a604bdp-1022s more active pieces. The black rooks are badly placed.} (17. e5 $16 Bxc4 18. bxc4 dxe5 19. d6 Bxd6 20. Bxb7) 17... Bxc4 {[%emt 0:00:12]} 18. bxc4 {[%emt 0:00:07][%cal Ob2b4]} Nd7 $1 {[%emt 0:00:23]} 19. f4 {[%emt 0:08:12][%cal Oe4e5]} Bf6 {[%emt 0:02:00] Prevents e5.} 20. Ra3 {[%emt 0:06:44]} O-O-O {[%emt 0:00:32] [#]} (20... a5 $14) 21. Rb1 $1 {[%emt 0:02:03]} Nb6 {[%emt 0:07:08] [#]} 22. Bf1 {[%emt 0:02:06][%cal Bg2f1,Bf1d3,Bd3c2,Bc2a4][%mdl 32]} Rde8 {[%emt 0:04:14]} 23. Bd3 {[%emt 0:01:00]} Nd7 {[%emt 0:05:26]} 24. Kg2 {[%emt 0:01:47]} Bd8 {[%emt 0:00:36]} 25. Kf3 {[%emt 0:01:25]} a5 {[%emt 0:01:26]} 26. Bc2 {[%emt 0:02:52]} Re7 {[%emt 0:03:56]} (26... g5 $14) 27. Bd2 {[%emt 0:00:32]} b6 {[%emt 0:00:36]} 28. Re3 {[%emt 0:00:16]} Ree8 {[%emt 0:19:37]} ({Better is} 28... f6 29. Rg1 g5) 29. Ba4 {[%emt 0:00:54]} Bf6 {[%emt 0:00:08]} 30. Bc3 {[%emt 0:00:21]} Reg8 $2 {[%emt 0:09:40][%mdl 8192] This costs Black the game.} (30... Bxc3 $16 31. bxc3 (31. Rxc3 Kc7 $16) 31... Re7) 31. e5 $18 {[%emt 0:01:33] White is clearly winning.} dxe5 {[%emt 0:03:14]} 32. fxe5 {[%emt 0:00:11]} Bg5 {[%emt 0:00:19]} 33. Re2 {[%emt 0:00:16]} Be7 {[%emt 0:03:46]} 34. Kg2 {[%emt 0:01:57] And now Rf1 would win.} f6 {[%emt 0:00:57]} (34... Re8 $142 35. Rbe1 Rhg8) 35. d6 {[%emt 0:00:19] Weighted Error Value: White=0.17 (very precise) /Black=0.45} 1-0